[Event "Titled Tuesday Blitz May 4 2021"]
[White "Priyanka, K"]
[Black "Amorim, Daniel Madson De Medeiro"]
[WhiteFideId "5082986"]
[BlackFideId "2124912"]
[WhiteElo "1893"]
[BlackElo "2179"]
[Result "1-0"]
[Round "05"]
[TimeControl "180+1"]
[Date "2021.05.04"]
[WhiteClock "0:00:32"]
[BlackClock "0:00:17"]

1. e4 {[%clk 0:03:00]}  e6 {[%clk 0:02:24]} 2. d4 {[%clk 0:03:00]}  d5 {[%clk 0:02:25]} 3. Nc3 {[%clk 0:03:00]}  Nf6 {[%clk 0:02:24]} 4. Bg5 {[%clk 0:03:00]}  Be7 {[%clk 0:02:23]} 5. e5 {[%clk 0:03:00]}  Ne4 {[%clk 0:02:24]} 6. Bxe7 {[%clk 0:03:01]}  Nxc3 {[%clk 0:02:24]} 7. Bxd8 {[%clk 0:02:39]}  Nxd1 {[%clk 0:01:21]} 8. Bxc7 {[%clk 0:02:37]}  Nxb2 {[%clk 0:01:21]} 9. Nf3 {[%clk 0:02:16]}  O-O {[%clk 0:01:19]} 10. Rb1 {[%clk 0:02:01]}  Nc4 {[%clk 0:01:19]} 11. Bxc4 {[%clk 0:01:57]}  dxc4 {[%clk 0:01:20]} 12. Rb4 {[%clk 0:01:40]}  Na6 {[%clk 0:01:19]} 13. Rxc4 {[%clk 0:01:41]}  b5 {[%clk 0:01:19]} 14. Rc3 {[%clk 0:01:37]}  b4 {[%clk 0:01:19]} 15. Rc4 {[%clk 0:01:37]}  Bb7 {[%clk 0:01:12]} 16. Bd6 {[%clk 0:01:36]}  Rfc8 {[%clk 0:01:12]} 17. Rxc8+ {[%clk 0:01:35]}  Rxc8 {[%clk 0:01:12]} 18. Kd2 {[%clk 0:01:35]}  Bd5 {[%clk 0:01:02]} 19. Ra1 {[%clk 0:01:17]}  Bxf3 {[%clk 0:00:40]} 20. gxf3 {[%clk 0:01:16]}  Rc3 {[%clk 0:00:37]} 21. a3 {[%clk 0:01:06]}  Rxa3 {[%clk 0:00:36]} 22. Rxa3 {[%clk 0:01:05]}  bxa3 {[%clk 0:00:37]} 23. Bxa3 {[%clk 0:01:06]}  Nc7 {[%clk 0:00:35]} 24. c4 {[%clk 0:01:04]}  f6 {[%clk 0:00:35]} 25. Bd6 {[%clk 0:01:03]}  Ne8 {[%clk 0:00:33]} 26. c5 {[%clk 0:01:03]}  Nxd6 {[%clk 0:00:28]} 27. exd6 {[%clk 0:00:57]}  Kf8 {[%clk 0:00:28]} 28. c6 {[%clk 0:00:54]}  Ke8 {[%clk 0:00:28]} 29. Kc3 {[%clk 0:00:54]}  g5 {[%clk 0:00:20]} 30. Kc4 {[%clk 0:00:46]}  h5 {[%clk 0:00:19]} 31. Kc5 {[%clk 0:00:35]}  e5 {[%clk 0:00:16]} 32. dxe5 {[%clk 0:00:35]}  fxe5 {[%clk 0:00:17]} 33. Kd5 {[%clk 0:00:34]}  a5 {[%clk 0:00:16]} 34. Kxe5 {[%clk 0:00:31]}  a4 {[%clk 0:00:16]} 35. Kd4 {[%clk 0:00:32]}  g4 {[%clk 0:00:16]} 36. fxg4 {[%clk 0:00:31]}  hxg4 {[%clk 0:00:17]} 37. Kc3 {[%clk 0:00:32]} 1-0


[Site "https://www.chess.com"]

[Event "Titled Tuesday Blitz May 4 2021"]
[White "Prraneeth Vuppala"]
[Black "Nazaretyan, Tigran"]
[WhiteFideId "46622373"]
[BlackFideId "24162345"]
[WhiteElo "1759"]
[BlackElo "2276"]
[Result "1-0"]
[Round "05"]
[TimeControl "180+1"]
[Date "2021.05.04"]
[WhiteClock "0:00:21"]
[BlackClock "0:00:06"]

1. e4 {[%clk 0:03:00]}  c5 {[%clk 0:02:59]} 2. Nf3 {[%clk 0:02:59]}  Nc6 {[%clk 0:02:59]} 3. d4 {[%clk 0:02:58]}  cxd4 {[%clk 0:02:58]} 4. Nxd4 {[%clk 0:02:59]}  Nf6 {[%clk 0:02:58]} 5. Nc3 {[%clk 0:02:59]}  d6 {[%clk 0:02:58]} 6. f3 {[%clk 0:02:56]}  e5 {[%clk 0:02:58]} 7. Nb3 {[%clk 0:02:56]}  Be7 {[%clk 0:02:57]} 8. Be3 {[%clk 0:02:54]}  a5 {[%clk 0:02:56]} 9. Bb5 {[%clk 0:02:46]}  O-O {[%clk 0:02:55]} 10. Qd2 {[%clk 0:02:26]}  Be6 {[%clk 0:02:53]} 11. Nd5 {[%clk 0:02:24]}  Bxd5 {[%clk 0:02:45]} 12. exd5 {[%clk 0:02:24]}  Nb4 {[%clk 0:02:45]} 13. c4 {[%clk 0:02:21]}  b6 {[%clk 0:02:23]} 14. O-O {[%clk 0:02:20]}  Nd7 {[%clk 0:02:21]} 15. Nc1 {[%clk 0:02:14]}  Nc5 {[%clk 0:02:19]} 16. a3 {[%clk 0:02:12]}  Nba6 {[%clk 0:02:09]} 17. b4 {[%clk 0:02:11]}  Nb7 {[%clk 0:01:56]} 18. Nd3 {[%clk 0:02:05]}  f5 {[%clk 0:01:48]} 19. Bc6 {[%clk 0:02:02]}  Rb8 {[%clk 0:01:43]} 20. Nb2 {[%clk 0:01:53]}  Qc7 {[%clk 0:01:38]} 21. Na4 {[%clk 0:01:51]}  Nd8 {[%clk 0:01:37]} 22. Nc3 {[%clk 0:01:50]}  Bf6 {[%clk 0:01:25]} 23. Nb5 {[%clk 0:01:42]}  Qe7 {[%clk 0:01:23]} 24. bxa5 {[%clk 0:01:37]}  Nc5 {[%clk 0:01:01]} 25. Bxc5 {[%clk 0:01:32]}  bxc5 {[%clk 0:01:01]} 26. a6 {[%clk 0:01:31]}  Nxc6 {[%clk 0:01:00]} 27. dxc6 {[%clk 0:01:31]}  Rb6 {[%clk 0:01:00]} 28. a7 {[%clk 0:01:30]}  Ra6 {[%clk 0:01:00]} 29. c7 {[%clk 0:01:28]}  Qf7 {[%clk 0:00:53]} 30. Rac1 {[%clk 0:01:15]}  e4 {[%clk 0:00:43]} 31. fxe4 {[%clk 0:01:11]}  fxe4 {[%clk 0:00:43]} 32. Nxd6 {[%clk 0:01:03]}  e3 {[%clk 0:00:22]} 33. Qd3 {[%clk 0:00:42]}  Qe6 {[%clk 0:00:17]} 34. c8=Q {[%clk 0:00:38]}  Rxc8 {[%clk 0:00:13]} 35. Nxc8 {[%clk 0:00:38]}  Qxc8 {[%clk 0:00:14]} 36. Qd5+ {[%clk 0:00:37]}  Kh8 {[%clk 0:00:14]} 37. Qf7 {[%clk 0:00:27]}  Qa8 {[%clk 0:00:10]} 38. Rcd1 {[%clk 0:00:22]}  Rxa7 {[%clk 0:00:07]} 39. Qxa7 {[%clk 0:00:21]}  Qxa7 {[%clk 0:00:06]} 40. Rd8+ {[%clk 0:00:21]} 1-0


[Site "https://www.chess.com"]

[Event "Titled Tuesday Blitz May 4 2021"]
[White "Quesada Perez, Yuniesky"]
[Black "Bernadskiy, Vitaliy"]
[WhiteFideId "3504409"]
[BlackFideId "14100371"]
[WhiteElo "2622"]
[BlackElo "2534"]
[Result "1-0"]
[Round "05"]
[TimeControl "180+1"]
[Date "2021.05.04"]
[WhiteClock "0:00:43"]
[BlackClock "0:01:18"]

1. e4 {[%clk 0:03:00]}  g6 {[%clk 0:03:00]} 2. d4 {[%clk 0:02:58]}  Bg7 {[%clk 0:03:01]} 3. Nc3 {[%clk 0:02:57]}  a6 {[%clk 0:03:01]} 4. Be3 {[%clk 0:02:55]}  b5 {[%clk 0:03:00]} 5. Nf3 {[%clk 0:02:53]}  Bb7 {[%clk 0:03:00]} 6. Bd3 {[%clk 0:02:53]}  d6 {[%clk 0:03:00]} 7. Qd2 {[%clk 0:02:51]}  Nd7 {[%clk 0:03:00]} 8. h3 {[%clk 0:02:46]}  c5 {[%clk 0:03:00]} 9. a3 {[%clk 0:02:24]}  cxd4 {[%clk 0:02:59]} 10. Nxd4 {[%clk 0:02:16]}  Ngf6 {[%clk 0:02:59]} 11. Bh6 {[%clk 0:02:09]}  O-O {[%clk 0:02:48]} 12. Bxg7 {[%clk 0:02:09]}  Kxg7 {[%clk 0:02:49]} 13. O-O {[%clk 0:02:08]}  Qb6 {[%clk 0:02:48]} 14. Nf3 {[%clk 0:02:02]}  Rac8 {[%clk 0:02:47]} 15. Rfe1 {[%clk 0:02:02]}  Rfd8 {[%clk 0:02:45]} 16. Qf4 {[%clk 0:01:51]}  Nc5 {[%clk 0:02:33]} 17. Rad1 {[%clk 0:01:18]}  b4 {[%clk 0:02:25]} 18. Nd5 {[%clk 0:01:17]}  Bxd5 {[%clk 0:02:19]} 19. exd5 {[%clk 0:01:17]}  bxa3 {[%clk 0:02:18]} 20. bxa3 {[%clk 0:01:04]}  Nxd3 {[%clk 0:02:16]} 21. Rxd3 {[%clk 0:00:56]}  Rxc2 {[%clk 0:02:15]} 22. Nd4 {[%clk 0:00:56]}  Rb2 {[%clk 0:01:46]} 23. Rxe7 {[%clk 0:00:52]}  Rd7 {[%clk 0:01:21]} 24. Ne6+ {[%clk 0:00:46]}  Kg8 {[%clk 0:01:18]} 25. Qxf6 {[%clk 0:00:43]} 1-0


[Site "https://www.chess.com"]

[Event "Titled Tuesday Blitz May 4 2021"]
[White "Radu, David Cr."]
[Black "Pasti, Aron"]
[WhiteFideId "1265717"]
[BlackFideId "785857"]
[WhiteElo "1596"]
[BlackElo "2082"]
[Result "1-0"]
[Round "05"]
[TimeControl "180+1"]
[Date "2021.05.04"]
[WhiteClock "0:00:51"]
[BlackClock "0:00:11"]

1. e4 {[%clk 0:03:00]}  e5 {[%clk 0:02:58]} 2. Nf3 {[%clk 0:03:00]}  Nc6 {[%clk 0:02:57]} 3. d4 {[%clk 0:03:00]}  exd4 {[%clk 0:02:57]} 4. Bc4 {[%clk 0:03:00]}  Nf6 {[%clk 0:02:56]} 5. e5 {[%clk 0:02:59]}  d5 {[%clk 0:02:50]} 6. Bb5 {[%clk 0:02:59]}  Ne4 {[%clk 0:02:50]} 7. Nxd4 {[%clk 0:02:59]}  Bc5 {[%clk 0:02:50]} 8. O-O {[%clk 0:02:54]}  Bxd4 {[%clk 0:02:47]} 9. Qxd4 {[%clk 0:02:50]}  O-O {[%clk 0:02:45]} 10. Bxc6 {[%clk 0:02:49]}  bxc6 {[%clk 0:02:46]} 11. Nc3 {[%clk 0:02:40]}  Nxc3 {[%clk 0:02:44]} 12. Qxc3 {[%clk 0:02:40]}  Bd7 {[%clk 0:02:35]} 13. Be3 {[%clk 0:02:40]}  Re8 {[%clk 0:02:34]} 14. Bc5 {[%clk 0:02:34]}  Qg5 {[%clk 0:02:30]} 15. f4 {[%clk 0:02:33]}  Qf5 {[%clk 0:02:26]} 16. Rae1 {[%clk 0:02:31]}  Rad8 {[%clk 0:02:24]} 17. Rf2 {[%clk 0:02:19]}  Re6 {[%clk 0:02:08]} 18. h3 {[%clk 0:02:08]}  h5 {[%clk 0:01:58]} 19. Qd4 {[%clk 0:02:05]}  a6 {[%clk 0:01:53]} 20. Re3 {[%clk 0:01:41]}  Rg6 {[%clk 0:01:51]} 21. Kh2 {[%clk 0:01:40]}  Re8 {[%clk 0:01:29]} 22. c4 {[%clk 0:01:37]}  Be6 {[%clk 0:01:24]} 23. b3 {[%clk 0:01:29]}  a5 {[%clk 0:01:22]} 24. Qc3 {[%clk 0:01:28]}  a4 {[%clk 0:01:21]} 25. cxd5 {[%clk 0:01:25]}  Bxd5 {[%clk 0:01:20]} 26. bxa4 {[%clk 0:01:26]}  Rge6 {[%clk 0:01:05]} 27. a5 {[%clk 0:01:23]}  g5 {[%clk 0:00:33]} 28. Rg3 {[%clk 0:01:18]}  g4 {[%clk 0:00:27]} 29. a6 {[%clk 0:01:14]}  Kh7 {[%clk 0:00:20]} 30. a7 {[%clk 0:01:13]}  f6 {[%clk 0:00:15]} 31. Bd4 {[%clk 0:01:12]}  fxe5 {[%clk 0:00:14]} 32. Bxe5 {[%clk 0:01:12]}  Rxe5 {[%clk 0:00:14]} 33. fxe5 {[%clk 0:01:05]}  Qxf2 {[%clk 0:00:13]} 34. hxg4 {[%clk 0:00:55]}  hxg4 {[%clk 0:00:12]} 35. Rxg4 {[%clk 0:00:53]}  Qxa7 {[%clk 0:00:11]} 36. Qh3# {[%clk 0:00:51]} 1-0


[Site "https://www.chess.com"]

[Event "Titled Tuesday Blitz May 4 2021"]
[White "Ravi, Thandalam Shanmugam"]
[Black "Ptacnikova, Lenka"]
[WhiteFideId "5000238"]
[BlackFideId "305650"]
[WhiteElo "2215"]
[BlackElo "1984"]
[Result "1-0"]
[Round "05"]
[TimeControl "180+1"]
[Date "2021.05.04"]
[WhiteClock "0:00:18"]
[BlackClock "0:00:02"]

1. e4 {[%clk 0:03:00]}  c5 {[%clk 0:02:55]} 2. c3 {[%clk 0:03:00]}  Nf6 {[%clk 0:02:54]} 3. e5 {[%clk 0:02:59]}  Nd5 {[%clk 0:02:55]} 4. d4 {[%clk 0:02:59]}  cxd4 {[%clk 0:02:55]} 5. Nf3 {[%clk 0:02:57]}  d6 {[%clk 0:02:55]} 6. cxd4 {[%clk 0:02:57]}  Nc6 {[%clk 0:02:51]} 7. Bc4 {[%clk 0:02:52]}  Nb6 {[%clk 0:02:45]} 8. Bb3 {[%clk 0:02:37]}  dxe5 {[%clk 0:02:40]} 9. dxe5 {[%clk 0:02:16]}  Qxd1+ {[%clk 0:02:36]} 10. Bxd1 {[%clk 0:02:15]}  Bg4 {[%clk 0:02:33]} 11. Bf4 {[%clk 0:02:13]}  e6 {[%clk 0:02:10]} 12. O-O {[%clk 0:02:06]}  Be7 {[%clk 0:01:54]} 13. h3 {[%clk 0:02:01]}  Bh5 {[%clk 0:01:53]} 14. Nc3 {[%clk 0:01:57]}  O-O {[%clk 0:01:49]} 15. Be2 {[%clk 0:01:55]}  Rfd8 {[%clk 0:01:41]} 16. g4 {[%clk 0:01:45]}  Bg6 {[%clk 0:01:40]} 17. Rfd1 {[%clk 0:01:34]}  Bc2 {[%clk 0:01:36]} 18. Rxd8+ {[%clk 0:01:30]}  Rxd8 {[%clk 0:01:35]} 19. Rc1 {[%clk 0:01:28]}  Bd3 {[%clk 0:01:33]} 20. Rd1 {[%clk 0:01:17]}  Bxe2 {[%clk 0:01:27]} 21. Rxd8+ {[%clk 0:01:18]}  Bxd8 {[%clk 0:01:27]} 22. Nxe2 {[%clk 0:01:18]}  Bc7 {[%clk 0:01:20]} 23. Ned4 {[%clk 0:01:10]}  Nxd4 {[%clk 0:01:18]} 24. Nxd4 {[%clk 0:01:10]}  a6 {[%clk 0:01:09]} 25. b3 {[%clk 0:01:03]}  Nd7 {[%clk 0:01:09]} 26. Nf3 {[%clk 0:01:01]}  f6 {[%clk 0:01:03]} 27. Kf1 {[%clk 0:00:51]}  Kf7 {[%clk 0:00:56]} 28. Ke2 {[%clk 0:00:49]}  b5 {[%clk 0:00:19]} 29. Bg3 {[%clk 0:00:48]}  Bb6 {[%clk 0:00:14]} 30. Nd2 {[%clk 0:00:39]}  f5 {[%clk 0:00:11]} 31. f4 {[%clk 0:00:30]}  g6 {[%clk 0:00:10]} 32. Bf2 {[%clk 0:00:28]}  Bxf2 {[%clk 0:00:09]} 33. Kxf2 {[%clk 0:00:28]}  Nc5 {[%clk 0:00:08]} 34. Ke3 {[%clk 0:00:28]}  Ke7 {[%clk 0:00:06]} 35. Kd4 {[%clk 0:00:28]}  Nd7 {[%clk 0:00:05]} 36. Nf3 {[%clk 0:00:27]}  fxg4 {[%clk 0:00:04]} 37. hxg4 {[%clk 0:00:27]}  h5 {[%clk 0:00:05]} 38. gxh5 {[%clk 0:00:21]}  gxh5 {[%clk 0:00:06]} 39. Nh4 {[%clk 0:00:20]}  Nf8 {[%clk 0:00:03]} 40. Ke4 {[%clk 0:00:20]}  Kf7 {[%clk 0:00:04]} 41. f5 {[%clk 0:00:20]}  exf5+ {[%clk 0:00:03]} 42. Kxf5 {[%clk 0:00:20]}  Ne6 {[%clk 0:00:02]} 43. Nf3 {[%clk 0:00:20]}  Ke7 {[%clk 0:00:02]} 44. Kg6 {[%clk 0:00:18]} 1-0


[Site "https://www.chess.com"]

[Event "Titled Tuesday Blitz May 4 2021"]
[White "Rodriguez, Santiago"]
[Black "Toncheva, Nadya"]
[WhiteFideId "3000591"]
[BlackFideId "2924056"]
[WhiteElo "2256"]
[BlackElo "1920"]
[Result "1-0"]
[Round "05"]
[TimeControl "180+1"]
[Date "2021.05.04"]
[WhiteClock "0:02:20"]
[BlackClock "0:01:21"]

1. e4 {[%clk 0:02:57]}  c5 {[%clk 0:02:59]} 2. Nc3 {[%clk 0:02:56]}  Nc6 {[%clk 0:02:58]} 3. Bb5 {[%clk 0:02:56]}  Nd4 {[%clk 0:02:57]} 4. Bc4 {[%clk 0:02:55]}  g6 {[%clk 0:02:57]} 5. Nf3 {[%clk 0:02:54]}  Bg7 {[%clk 0:02:57]} 6. Nxd4 {[%clk 0:02:55]}  cxd4 {[%clk 0:02:56]} 7. Qf3 {[%clk 0:02:55]}  e6 {[%clk 0:02:53]} 8. Nb5 {[%clk 0:02:55]}  d6 {[%clk 0:02:44]} 9. Qa3 {[%clk 0:02:53]}  Be5 {[%clk 0:02:38]} 10. O-O {[%clk 0:02:44]}  g5 {[%clk 0:02:16]} 11. c3 {[%clk 0:02:42]}  dxc3 {[%clk 0:02:01]} 12. d4 {[%clk 0:02:41]}  cxb2 {[%clk 0:01:59]} 13. Bxb2 {[%clk 0:02:42]}  d5 {[%clk 0:01:41]} 14. exd5 {[%clk 0:02:30]}  exd5 {[%clk 0:01:39]} 15. dxe5 {[%clk 0:02:29]}  dxc4 {[%clk 0:01:39]} 16. e6 {[%clk 0:02:23]}  Bxe6 {[%clk 0:01:21]} 17. Bxh8 {[%clk 0:02:20]} 1-0


[Site "https://www.chess.com"]

[Event "Titled Tuesday Blitz May 4 2021"]
[White "Rojas Alarcon, Julian Antonio"]
[Black "Korkmaz, Necmettin"]
[WhiteFideId "5107407"]
[BlackFideId "6303285"]
[WhiteElo "2333"]
[BlackElo "2094"]
[Result "1-0"]
[Round "05"]
[TimeControl "180+1"]
[Date "2021.05.04"]
[WhiteClock "0:00:13"]
[BlackClock "0:00:11"]

1. e4 {[%clk 0:02:37]}  e5 {[%clk 0:02:50]} 2. Nf3 {[%clk 0:02:37]}  Nc6 {[%clk 0:02:48]} 3. Bb5 {[%clk 0:02:37]}  Nf6 {[%clk 0:02:46]} 4. d3 {[%clk 0:02:36]}  Bc5 {[%clk 0:02:34]} 5. Be3 {[%clk 0:02:35]}  Bb6 {[%clk 0:02:19]} 6. Nbd2 {[%clk 0:02:32]}  a6 {[%clk 0:02:14]} 7. Bxc6 {[%clk 0:02:27]}  dxc6 {[%clk 0:02:10]} 8. Bxb6 {[%clk 0:02:26]}  cxb6 {[%clk 0:02:08]} 9. Nxe5 {[%clk 0:01:50]}  Qd4 {[%clk 0:02:02]} 10. Ndc4 {[%clk 0:01:38]}  b5 {[%clk 0:01:59]} 11. Nf3 {[%clk 0:01:37]}  Qc5 {[%clk 0:01:48]} 12. Ncd2 {[%clk 0:01:32]}  Bg4 {[%clk 0:01:43]} 13. h3 {[%clk 0:01:31]}  Bxf3 {[%clk 0:01:36]} 14. Nxf3 {[%clk 0:01:25]}  Qb4+ {[%clk 0:01:36]} 15. Qd2 {[%clk 0:01:23]}  Qxb2 {[%clk 0:01:36]} 16. O-O {[%clk 0:01:23]}  Qa3 {[%clk 0:01:32]} 17. e5 {[%clk 0:01:19]}  Nd5 {[%clk 0:01:29]} 18. c4 {[%clk 0:01:19]}  bxc4 {[%clk 0:01:09]} 19. dxc4 {[%clk 0:01:18]}  Ne7 {[%clk 0:01:02]} 20. Rab1 {[%clk 0:01:11]}  b5 {[%clk 0:00:59]} 21. Rb3 {[%clk 0:01:02]}  Qa4 {[%clk 0:00:58]} 22. cxb5 {[%clk 0:01:01]}  axb5 {[%clk 0:00:58]} 23. Rb4 {[%clk 0:00:42]}  Qxa2 {[%clk 0:00:56]} 24. Qg5 {[%clk 0:00:42]}  Qe6 {[%clk 0:00:36]} 25. Rg4 {[%clk 0:00:37]}  Nf5 {[%clk 0:00:29]} 26. Rf4 {[%clk 0:00:33]}  g6 {[%clk 0:00:27]} 27. g4 {[%clk 0:00:33]}  h6 {[%clk 0:00:26]} 28. Qf6 {[%clk 0:00:23]}  Qxf6 {[%clk 0:00:24]} 29. exf6 {[%clk 0:00:24]}  Nd6 {[%clk 0:00:23]} 30. Re1+ {[%clk 0:00:24]}  Kd7 {[%clk 0:00:14]} 31. Re7+ {[%clk 0:00:22]}  Kc8 {[%clk 0:00:13]} 32. Rd4 {[%clk 0:00:21]}  Rd8 {[%clk 0:00:13]} 33. Ne5 {[%clk 0:00:20]}  Ra1+ {[%clk 0:00:10]} 34. Kg2 {[%clk 0:00:20]}  Rc1 {[%clk 0:00:11]} 35. Rd3 {[%clk 0:00:17]}  c5 {[%clk 0:00:11]} 36. Ra3 {[%clk 0:00:17]}  Kb8 {[%clk 0:00:10]} 37. Nc6+ {[%clk 0:00:13]}  Kc8 {[%clk 0:00:11]} 38. Ra8# {[%clk 0:00:13]} 1-0


[Site "https://www.chess.com"]

[Event "Titled Tuesday Blitz May 4 2021"]
[White "Ronka, Erik"]
[Black "Niyazgulova, Marina"]
[WhiteFideId "505080"]
[BlackFideId "24142573"]
[WhiteElo "2264"]
[BlackElo "2087"]
[Result "1/2-1/2"]
[Round "05"]
[TimeControl "180+1"]
[Date "2021.05.04"]
[WhiteClock "0:00:08"]
[BlackClock "0:00:09"]

1. d4 {[%clk 0:03:00]}  d5 {[%clk 0:02:59]} 2. c4 {[%clk 0:03:01]}  c6 {[%clk 0:02:59]} 3. Nc3 {[%clk 0:03:01]}  Nf6 {[%clk 0:02:59]} 4. e3 {[%clk 0:03:01]}  a6 {[%clk 0:02:58]} 5. Nf3 {[%clk 0:03:00]}  b5 {[%clk 0:02:57]} 6. b3 {[%clk 0:02:59]}  Bf5 {[%clk 0:02:57]} 7. Bd3 {[%clk 0:02:57]}  Ne4 {[%clk 0:02:37]} 8. Bxe4 {[%clk 0:02:50]}  Bxe4 {[%clk 0:02:34]} 9. Nxe4 {[%clk 0:02:47]}  dxe4 {[%clk 0:02:34]} 10. Ne5 {[%clk 0:02:16]}  e6 {[%clk 0:02:26]} 11. O-O {[%clk 0:02:09]}  Qg5 {[%clk 0:02:02]} 12. f4 {[%clk 0:02:01]}  exf3 {[%clk 0:02:01]} 13. Qxf3 {[%clk 0:01:57]}  f6 {[%clk 0:01:49]} 14. Nxc6 {[%clk 0:01:47]}  Nd7 {[%clk 0:01:40]} 15. Ne5 {[%clk 0:01:26]}  Rd8 {[%clk 0:01:31]} 16. Nxd7 {[%clk 0:01:25]}  Rxd7 {[%clk 0:01:31]} 17. Qa8+ {[%clk 0:01:23]}  Kf7 {[%clk 0:01:31]} 18. Qxa6 {[%clk 0:01:19]}  bxc4 {[%clk 0:01:31]} 19. Qxc4 {[%clk 0:01:17]}  Bd6 {[%clk 0:01:31]} 20. e4 {[%clk 0:01:06]}  Qh4 {[%clk 0:01:26]} 21. e5 {[%clk 0:01:02]}  Bb8 {[%clk 0:01:20]} 22. Be3 {[%clk 0:00:41]}  Ba7 {[%clk 0:01:16]} 23. exf6 {[%clk 0:00:27]}  gxf6 {[%clk 0:01:15]} 24. Rf4 {[%clk 0:00:24]}  Qg5 {[%clk 0:01:04]} 25. Raf1 {[%clk 0:00:20]}  Rg8 {[%clk 0:01:04]} 26. Rxf6+ {[%clk 0:00:19]}  Qxf6 {[%clk 0:01:03]} 27. Rxf6+ {[%clk 0:00:19]}  Kxf6 {[%clk 0:01:04]} 28. Qf1+ {[%clk 0:00:18]}  Ke7 {[%clk 0:01:01]} 29. Qf4 {[%clk 0:00:18]}  Rgd8 {[%clk 0:00:56]} 30. Qh4+ {[%clk 0:00:18]}  Ke8 {[%clk 0:00:55]} 31. Qh5+ {[%clk 0:00:17]}  Kf8 {[%clk 0:00:49]} 32. Bh6+ {[%clk 0:00:16]}  Kg8 {[%clk 0:00:47]} 33. Qg4+ {[%clk 0:00:16]}  Kh8 {[%clk 0:00:44]} 34. Be3 {[%clk 0:00:16]}  Bxd4 {[%clk 0:00:42]} 35. Bxd4+ {[%clk 0:00:16]}  Rxd4 {[%clk 0:00:42]} 36. Qxe6 {[%clk 0:00:16]}  Rd1+ {[%clk 0:00:36]} 37. Kf2 {[%clk 0:00:16]}  R8d2+ {[%clk 0:00:32]} 38. Kg3 {[%clk 0:00:14]}  Rxa2 {[%clk 0:00:26]} 39. Qe5+ {[%clk 0:00:12]}  Kg8 {[%clk 0:00:21]} 40. Qg5+ {[%clk 0:00:07]}  Kf8 {[%clk 0:00:19]} 41. Qf4+ {[%clk 0:00:07]}  Ke7 {[%clk 0:00:14]} 42. Qe4+ {[%clk 0:00:08]}  Kd8 {[%clk 0:00:12]} 43. Qxh7 {[%clk 0:00:06]}  Rad2 {[%clk 0:00:10]} 44. Qh8+ {[%clk 0:00:06]}  Kc7 {[%clk 0:00:10]} 45. Qh7+ {[%clk 0:00:07]}  Rd7 {[%clk 0:00:10]} 46. Qe4 {[%clk 0:00:07]}  R7d3+ {[%clk 0:00:07]} 47. Kf2 {[%clk 0:00:06]}  R1d2+ {[%clk 0:00:08]} 48. Ke1 {[%clk 0:00:06]}  Rd1+ {[%clk 0:00:08]} 49. Ke2 {[%clk 0:00:06]}  R1d2+ {[%clk 0:00:08]} 50. Kf1 {[%clk 0:00:06]}  Rd1+ {[%clk 0:00:09]} 51. Ke2 {[%clk 0:00:07]}  R1d2+ {[%clk 0:00:09]} 52. Ke1 {[%clk 0:00:07]}  Rd1+ {[%clk 0:00:09]} 53. Ke2 {[%clk 0:00:08]} 1/2-1/2


[Site "https://www.chess.com"]

[Event "Titled Tuesday Blitz May 4 2021"]
[White "Rozhkov, Viacheslav"]
[Black "Sviridova, Vlada"]
[WhiteFideId "4181484"]
[BlackFideId "24109606"]
[WhiteElo "2324"]
[BlackElo "2101"]
[Result "1-0"]
[Round "05"]
[TimeControl "180+1"]
[Date "2021.05.04"]
[WhiteClock "0:00:17"]
[BlackClock "0:00:07"]

1. e4 {[%clk 0:02:42]}  e6 {[%clk 0:02:59]} 2. d4 {[%clk 0:02:41]}  d5 {[%clk 0:02:59]} 3. e5 {[%clk 0:02:42]}  c5 {[%clk 0:02:59]} 4. c3 {[%clk 0:02:42]}  Qb6 {[%clk 0:02:59]} 5. Nf3 {[%clk 0:02:43]}  Nc6 {[%clk 0:03:00]} 6. a3 {[%clk 0:02:43]}  c4 {[%clk 0:03:00]} 7. Nbd2 {[%clk 0:02:43]}  Na5 {[%clk 0:03:00]} 8. Be2 {[%clk 0:02:43]}  Bd7 {[%clk 0:03:00]} 9. O-O {[%clk 0:02:43]}  Ne7 {[%clk 0:03:01]} 10. Rb1 {[%clk 0:02:42]}  Qc7 {[%clk 0:03:01]} 11. g3 {[%clk 0:02:18]}  h6 {[%clk 0:03:00]} 12. h4 {[%clk 0:02:17]}  Nc8 {[%clk 0:03:00]} 13. Ne1 {[%clk 0:01:53]}  Nb6 {[%clk 0:02:59]} 14. Bf3 {[%clk 0:01:52]}  O-O-O {[%clk 0:02:53]} 15. Qe2 {[%clk 0:01:50]}  Be7 {[%clk 0:02:42]} 16. h5 {[%clk 0:01:50]}  g6 {[%clk 0:02:17]} 17. hxg6 {[%clk 0:01:50]}  fxg6 {[%clk 0:02:17]} 18. Kg2 {[%clk 0:01:50]}  h5 {[%clk 0:02:13]} 19. Rh1 {[%clk 0:01:47]}  h4 {[%clk 0:01:55]} 20. gxh4 {[%clk 0:01:40]}  Bxh4 {[%clk 0:01:55]} 21. Nc2 {[%clk 0:01:33]}  Rdf8 {[%clk 0:01:48]} 22. Ne3 {[%clk 0:01:33]}  Ba4 {[%clk 0:01:37]} 23. Ndf1 {[%clk 0:01:21]}  Qf7 {[%clk 0:01:26]} 24. Ng3 {[%clk 0:01:21]}  Bxg3 {[%clk 0:01:18]} 25. Rxh8 {[%clk 0:01:20]}  Rxh8 {[%clk 0:01:17]} 26. fxg3 {[%clk 0:01:20]}  g5 {[%clk 0:01:05]} 27. Ng4 {[%clk 0:01:13]}  Qh7 {[%clk 0:01:02]} 28. Ra1 {[%clk 0:01:02]}  Nb3 {[%clk 0:00:52]} 29. Bxg5 {[%clk 0:00:53]}  Nxa1 {[%clk 0:00:51]} 30. Bh4 {[%clk 0:00:47]}  Qc2 {[%clk 0:00:49]} 31. Nf6 {[%clk 0:00:43]}  Qxe2+ {[%clk 0:00:48]} 32. Bxe2 {[%clk 0:00:43]}  Nc2 {[%clk 0:00:48]} 33. g4 {[%clk 0:00:42]}  Ne3+ {[%clk 0:00:47]} 34. Kf3 {[%clk 0:00:41]}  Nd1 {[%clk 0:00:47]} 35. Bg3 {[%clk 0:00:25]}  Nxb2 {[%clk 0:00:45]} 36. g5 {[%clk 0:00:26]}  Bc2 {[%clk 0:00:44]} 37. Kf4 {[%clk 0:00:22]}  Nd3+ {[%clk 0:00:39]} 38. Ke3 {[%clk 0:00:21]}  Nc1 {[%clk 0:00:36]} 39. Bg4 {[%clk 0:00:22]}  Kd8 {[%clk 0:00:22]} 40. Kd2 {[%clk 0:00:21]}  Bf5 {[%clk 0:00:15]} 41. Bxf5 {[%clk 0:00:21]}  exf5 {[%clk 0:00:15]} 42. g6 {[%clk 0:00:21]}  Ke7 {[%clk 0:00:10]} 43. g7 {[%clk 0:00:21]}  Rd8 {[%clk 0:00:10]} 44. Kxc1 {[%clk 0:00:21]}  Na4 {[%clk 0:00:09]} 45. g8=Q {[%clk 0:00:19]}  Rxg8 {[%clk 0:00:09]} 46. Nxg8+ {[%clk 0:00:20]}  Kf7 {[%clk 0:00:09]} 47. Nh6+ {[%clk 0:00:18]}  Kg6 {[%clk 0:00:08]} 48. e6 {[%clk 0:00:19]}  Nxc3 {[%clk 0:00:07]} 49. e7 {[%clk 0:00:18]}  Ne2+ {[%clk 0:00:07]} 50. Kd2 {[%clk 0:00:17]} 1-0


[Site "https://www.chess.com"]